fUSD/lending_fUSD_20260607
["ID","MTS","AMOUNT","RATE_DAILY","PERIOD"]
[424383311,1780825867000,-816.420522,0.00016438,2]
[424383313,1780825867000,-816.420522,0.00016438,2]
[424383324,1780825867000,-816.420522,0.00016438,2]
[424383323,1780825867000,-816.420522,0.00016438,2]
[424383312,1780825867000,-816.420522,0.00016438,2]
[424383314,1780825867000,-816.420522,0.00016438,2]
[424383319,1780825867000,-816.420522,0.00016438,2]
[424383320,1780825867000,-816.420522,0.00016438,2]
[424383325,1780825867000,-816.420522,0.00016438,2]
[424383316,1780825867000,-816.420522,0.00016438,2]
[424383317,1780825867000,-816.420522,0.00016438,2]
[424383322,1780825867000,-816.420522,0.00016438,2]
[424383318,1780825867000,-816.420522,0.00016438,2]
[424383330,1780825867000,-151.0,0.00016438,2]
[424383326,1780825867000,-816.420522,0.00016438,2]
[424383327,1780825867000,-816.420522,0.00016438,2]
[424383329,1780825867000,-151.0,0.00016438,2]
[424383309,1780825867000,-816.420522,0.00016438,2]
[424383315,1780825867000,-816.420522,0.00016438,2]
[424383307,1780825867000,-156.03193139,0.00016438,2]
[424383292,1780825867000,-382.0,0.00016306,2]
[424383306,1780825867000,-152.0,0.00016438,2]
[424383328,1780825867000,-816.420523,0.00016438,2]
[424383286,1780825867000,-350.0,0.00016238,2]
[424383289,1780825867000,-3554.0,0.00016306,2]
[424383287,1780825867000,-500.0,0.00016295,2]
[424383288,1780825867000,-573.09,0.000163,2]
[424383290,1780825867000,-1358.0,0.00016306,2]
[424383294,1780825867000,-150.0,0.00016306,2]
[424383293,1780825867000,-1227.0,0.00016306,2]
[424383301,1780825867000,-152.0,0.00016438,2]
[424383308,1780825867000,-156.136964,0.00016438,2]
[424383291,1780825867000,-1274.0,0.00016306,2]
[424383299,1780825867000,-609.5,0.00016438,2]
[424383298,1780825867000,-500.0,0.00016425,2]
[424383295,1780825867000,-419.0,0.00016306,2]
[424383296,1780825867000,-933.0,0.00016306,2]
[424383297,1780825867000,-200.0,0.0001634,2]
[424383300,1780825867000,-1143.79,0.00016438,2]
[424383303,1780825867000,-152.0,0.00016438,2]
[424383304,1780825867000,-152.0,0.00016438,2]
[424383305,1780825867000,-152.0,0.00016438,2]
[424383302,1780825867000,-152.0,0.00016438,2]
[424383333,1780825867000,-151.0,0.00016438,2]
[424383376,1780825867000,-202.576104,0.00016438,2]
[424383331,1780825867000,-151.0,0.00016438,2]
[424383357,1780825867000,-151.0,0.00016438,2]
[424383361,1780825867000,-202.576104,0.00016438,2]
[424383360,1780825867000,-273.641047,0.00016438,2]
[424383371,1780825867000,-202.576104,0.00016438,2]
[424383362,1780825867000,-202.576104,0.00016438,2]
[424383363,1780825867000,-202.576104,0.00016438,2]
[424383365,1780825867000,-202.576104,0.00016438,2]
[424383369,1780825867000,-202.576104,0.00016438,2]
[424383364,1780825867000,-202.576104,0.00016438,2]
[424383355,1780825867000,-151.0,0.00016438,2]
[424383368,1780825867000,-202.576104,0.00016438,2]
[424383367,1780825867000,-202.576104,0.00016438,2]
[424383372,1780825867000,-202.576104,0.00016438,2]
[424383378,1780825867000,-202.576104,0.00016438,2]
[424383374,1780825867000,-202.576104,0.00016438,2]
[424383373,1780825867000,-202.576104,0.00016438,2]
[424383377,1780825867000,-202.576104,0.00016438,2]
[424383375,1780825867000,-202.576104,0.00016438,2]
[424383379,1780825867000,-202.576104,0.00016438,2]
[424383332,1780825867000,-151.0,0.00016438,2]
[424383366,1780825867000,-202.576104,0.00016438,2]
[424383356,1780825867000,-151.0,0.00016438,2]
[424383370,1780825867000,-202.576104,0.00016438,2]
[424383353,1780825867000,-151.0,0.00016438,2]
[424383358,1780825867000,-151.0,0.00016438,2]
[424383334,1780825867000,-151.0,0.00016438,2]
[424383335,1780825867000,-151.0,0.00016438,2]
[424383336,1780825867000,-163.055595,0.00016438,2]
[424383337,1780825867000,-151.0,0.00016438,2]
[424383342,1780825867000,-151.0,0.00016438,2]
[424383347,1780825867000,-151.0,0.00016438,2]
[424383338,1780825867000,-151.0,0.00016438,2]
[424383339,1780825867000,-151.0,0.00016438,2]
[424383344,1780825867000,-151.0,0.00016438,2]
[424383345,1780825867000,-151.0,0.00016438,2]
[424383341,1780825867000,-151.0,0.00016438,2]
[424383340,1780825867000,-151.0,0.00016438,2]
[424383343,1780825867000,-151.0,0.00016438,2]
[424383349,1780825867000,-151.0,0.00016438,2]
[424383359,1780825867000,-151.0,0.00016438,2]
[424383352,1780825867000,-151.0,0.00016438,2]
[424383348,1780825867000,-151.0,0.00016438,2]
[424383351,1780825867000,-151.0,0.00016438,2]
[424383350,1780825867000,-151.0,0.00016438,2]
[424383346,1780825867000,-151.0,0.00016438,2]
[424383354,1780825867000,-151.0,0.00016438,2]
[424383420,1780825868000,-168.32,0.00016712,2]
[424383423,1780825868000,-930.4638997,0.00016877,2]
[424383419,1780825868000,-177.183345,0.00016712,2]
[424383412,1780825868000,-500.0,0.00016438,2]
[424383410,1780825868000,-500.0,0.00016438,2]
[424383409,1780825868000,-500.0,0.00016438,2]
[424383411,1780825868000,-500.0,0.00016438,2]
[424383413,1780825868000,-500.0,0.00016438,2]
[424383407,1780825868000,-500.0,0.00016438,2]
[424383421,1780825868000,-2012.51,0.00016767,2]
[424383415,1780825868000,-500.0,0.00016438,2]
[424383417,1780825868000,-173.94201059,0.000165,2]
[424383422,1780825868000,-200.0,0.000168,3]
[424383433,1780825868000,-645.0,0.000176,2]
[424383425,1780825868000,-177.31,0.00017,2]
[424383428,1780825868000,-1075.16,0.00017424,2]
[424383426,1780825868000,-198.4091038,0.00017,2]
[424383427,1780825868000,-482.18,0.00017122,2]
[424383429,1780825868000,-300.0,0.000175,7]
[424383424,1780825868000,-1109.48,0.00016931,2]
[424383432,1780825868000,-315.0,0.000176,2]
[424383443,1780825868000,-152.52,0.000178,2]
[424383434,1780825868000,-300.0,0.00017739,2]
[424383436,1780825868000,-300.0,0.00017739,2]
[424383442,1780825868000,-217.0,0.00017739,2]
[424383418,1780825868000,-708.74732257,0.00016562,4]
[424383430,1780825868000,-612.55,0.00017572,2]
[424383408,1780825868000,-500.0,0.00016438,2]
[424383387,1780825868000,-500.0,0.00016438,2]
[424383416,1780825868000,-1385.48,0.000165,2]
[424383381,1780825868000,-500.0,0.00016438,2]
[424383382,1780825868000,-500.0,0.00016438,2]
[424383383,1780825868000,-500.0,0.00016438,2]
[424383380,1780825868000,-202.576112,0.00016438,2]
[424383384,1780825868000,-500.0,0.00016438,2]
[424383437,1780825868000,-300.0,0.00017739,2]
[424383388,1780825868000,-500.0,0.00016438,2]
[424383386,1780825868000,-500.0,0.00016438,2]
[424383394,1780825868000,-500.0,0.00016438,2]
[424383393,1780825868000,-500.0,0.00016438,2]
[424383389,1780825868000,-500.0,0.00016438,2]
[424383390,1780825868000,-500.0,0.00016438,2]
[424383385,1780825868000,-500.0,0.00016438,2]
[424383395,1780825868000,-500.0,0.00016438,2]
[424383391,1780825868000,-500.0,0.00016438,2]
[424383392,1780825868000,-500.0,0.00016438,2]
[424383397,1780825868000,-500.0,0.00016438,2]
[424383396,1780825868000,-500.0,0.00016438,2]
[424383399,1780825868000,-500.0,0.00016438,2]
[424383398,1780825868000,-500.0,0.00016438,2]
[424383401,1780825868000,-500.0,0.00016438,2]
[424383405,1780825868000,-500.0,0.00016438,2]
[424383400,1780825868000,-500.0,0.00016438,2]
[424383406,1780825868000,-500.0,0.00016438,2]
[424383404,1780825868000,-500.0,0.00016438,2]
[424383402,1780825868000,-500.0,0.00016438,2]
[424383403,1780825868000,-500.0,0.00016438,2]
[424383414,1780825868000,-500.0,0.00016438,2]
[424383435,1780825868000,-300.0,0.00017739,2]
[424383431,1780825868000,-309.0,0.000176,2]
[424383441,1780825868000,-300.0,0.00017739,2]
[424383470,1780825868000,-151.0,0.00018506,2]
[424383476,1780825868000,-578.20924308,0.00018506,2]
[424383474,1780825868000,-151.0,0.00018506,2]
[424383477,1780825868000,-174.61919141,0.00018506,2]
[424383473,1780825868000,-151.0,0.00018506,2]
[424383480,1780825868000,-151.0,0.00018506,2]
[424383475,1780825868000,-209.40437684,0.00018506,2]
[424383478,1780825868000,-151.0,0.00018506,2]
[424383482,1780825868000,-151.0,0.00018506,2]
[424383485,1780825868000,-209.40437684,0.00018506,2]
[424383486,1780825868000,-151.0,0.00018506,2]
[424383492,1780825868000,-500.0,0.00018506,2]
[424383481,1780825868000,-151.0,0.00018506,2]
[424383483,1780825868000,-151.0,0.00018506,2]
[424383493,1780825868000,-151.0,0.00018506,2]
[424383484,1780825868000,-160.0,0.00018506,2]
[424383488,1780825868000,-500.0,0.00018506,2]
[424383489,1780825868000,-209.40437684,0.00018506,2]
[424383491,1780825868000,-151.0,0.00018506,2]
[424383490,1780825868000,-151.0,0.00018506,2]
[424383495,1780825868000,-200.0,0.00018506,2]
[424383496,1780825868000,-152.0,0.00018506,2]
[424383497,1780825868000,-151.0,0.00018506,2]
[424383494,1780825868000,-209.40437684,0.00018506,2]
[424383498,1780825868000,-151.0,0.00018506,2]
[424383499,1780825868000,-500.0,0.00018506,2]
[424383440,1780825868000,-300.0,0.00017739,2]
[424383479,1780825868000,-151.0,0.00018506,2]
[424383468,1780825868000,-200.0,0.00018506,2]
[424383487,1780825868000,-151.0,0.00018506,2]
[424383472,1780825868000,-151.0,0.00018506,2]
[424383438,1780825868000,-300.0,0.00017739,2]
[424383471,1780825868000,-693.39197629,0.00018506,2]
[424383445,1780825868000,-169.69,0.00017903,2]
[424383455,1780825868000,-1040.84,0.00018082,2]
[424383444,1780825868000,-169.69,0.00017903,2]
[424383448,1780825868000,-185.01,0.00017944,2]
[424383446,1780825868000,-575.2,0.00017944,2]
[424383447,1780825868000,-643.86,0.00017944,2]
[424383451,1780825868000,-166.72606526,0.00018,2]
[424383450,1780825868000,-539.69955174,0.00018,2]
[424383453,1780825868000,-350.0,0.00018,2]
[424383449,1780825868000,-575.26,0.00017944,2]
[424383452,1780825868000,-200.0,0.00018,2]
[424383454,1780825868000,-620.0,0.0001805,2]
[424383439,1780825868000,-300.0,0.00017739,2]
[424383469,1780825868000,-207.43286229,0.00018506,2]
[424383457,1780825868000,-1385.48,0.000184,2]
[424383458,1780825868000,-166.72606526,0.000184,2]
[424383459,1780825868000,-177.45959416,0.000184,2]
[424383460,1780825868000,-177.45959416,0.000184,2]
[424383464,1780825868000,-1110.86,0.000185,7]
[424383462,1780825868000,-10947.20103922,0.00018489,7]
[424383461,1780825868000,-609.5,0.0001841,2]
[424383456,1780825868000,-166.72606526,0.000182,2]
[424383463,1780825868000,-244.49186005,0.00018489,7]
[424383465,1780825868000,-151.0,0.00018506,2]
[424383466,1780825868000,-151.0,0.00018506,2]
[424383467,1780825868000,-151.0,0.00018506,2]
[424383535,1780825869000,-559.94040983,0.00018561,2]
[424383537,1780825869000,-151.0,0.00018616,2]
[424383540,1780825869000,-396.06,0.00018766,2]
[424383541,1780825869000,-396.01,0.00018766,2]
[424383536,1780825869000,-151.0,0.00018561,2]
[424383542,1780825869000,-644.0,0.00018766,2]
[424383533,1780825869000,-500.0,0.00018506,2]
[424383531,1780825869000,-500.0,0.00018506,2]
[424383532,1780825869000,-152.0,0.00018506,2]
[424383543,1780825869000,-575.12,0.00018766,2]
[424383539,1780825869000,-151.0,0.00018726,2]
[424383534,1780825869000,-152.0,0.00018506,2]
[424383538,1780825869000,-151.0,0.00018671,2]
[424383544,1780825869000,-151.0,0.00018781,2]
[424383551,1780825869000,-250.0,0.00018865,2]
[424383548,1780825869000,-250.0,0.00018865,2]
[424383546,1780825869000,-151.0,0.00018836,2]
[424383547,1780825869000,-231.0,0.00018863,2]
[424383545,1780825869000,-279.78,0.000188,8]
[424383555,1780825869000,-250.0,0.00018865,2]
[424383554,1780825869000,-250.0,0.00018865,2]
[424383550,1780825869000,-250.0,0.00018865,2]
[424383552,1780825869000,-250.0,0.00018865,2]
[424383556,1780825869000,-221.0,0.00018865,2]
[424383553,1780825869000,-250.0,0.00018865,2]
[424383558,1780825869000,-151.0,0.00018891,2]
[424383568,1780825869000,-150.0,0.0001902,2]
[424383549,1780825869000,-250.0,0.00018865,2]
[424383529,1780825869000,-151.0,0.00018506,2]
[424383500,1780825869000,-151.0,0.00018506,2]
[424383526,1780825869000,-151.0,0.00018506,2]
[424383557,1780825869000,-482.08,0.00018867,2]
[424383502,1780825869000,-152.0,0.00018506,2]
[424383501,1780825869000,-151.0,0.00018506,2]
[424383503,1780825869000,-500.0,0.00018506,2]
[424383504,1780825869000,-151.0,0.00018506,2]
[424383506,1780825869000,-152.0,0.00018506,2]
[424383518,1780825869000,-152.0,0.00018506,2]
[424383507,1780825869000,-500.0,0.00018506,2]
[424383508,1780825869000,-151.0,0.00018506,2]
[424383505,1780825869000,-151.0,0.00018506,2]
[424383516,1780825869000,-151.0,0.00018506,2]
[424383517,1780825869000,-500.0,0.00018506,2]
[424383512,1780825869000,-151.0,0.00018506,2]
[424383525,1780825869000,-500.0,0.00018506,2]
[424383509,1780825869000,-151.0,0.00018506,2]
[424383510,1780825869000,-152.0,0.00018506,2]
[424383513,1780825869000,-151.0,0.00018506,2]
[424383515,1780825869000,-151.0,0.00018506,2]
[424383514,1780825869000,-152.0,0.00018506,2]
[424383519,1780825869000,-151.0,0.00018506,2]
[424383523,1780825869000,-151.0,0.00018506,2]
[424383521,1780825869000,-500.0,0.00018506,2]
[424383522,1780825869000,-152.0,0.00018506,2]
[424383520,1780825869000,-151.0,0.00018506,2]
[424383527,1780825869000,-152.0,0.00018506,2]
[424383530,1780825869000,-152.0,0.00018506,2]
[424383528,1780825869000,-500.0,0.00018506,2]
[424383524,1780825869000,-151.0,0.00018506,2]
[424383511,1780825869000,-500.0,0.00018506,2]
[424383569,1780825869000,-150.0,0.0001902,2]
[424383615,1780825869000,-158.563568,0.00019178,2]
[424383560,1780825869000,-3236.18534822,0.00019,2]
[424383595,1780825869000,-151.0,0.00019178,2]
[424383600,1780825869000,-151.0,0.00019178,2]
[424383596,1780825869000,-151.0,0.00019178,2]
[424383598,1780825869000,-151.0,0.00019178,2]
[424383601,1780825869000,-151.0,0.00019178,2]
[424383602,1780825869000,-151.0,0.00019178,2]
[424383597,1780825869000,-151.0,0.00019178,2]
[424383603,1780825869000,-151.0,0.00019178,2]
[424383605,1780825869000,-151.0,0.00019178,2]
[424383606,1780825869000,-240.562831,0.00019178,2]
[424383604,1780825869000,-151.0,0.00019178,2]
[424383599,1780825869000,-151.0,0.00019178,2]
[424383608,1780825869000,-158.563568,0.00019178,2]
[424383591,1780825869000,-151.0,0.00019178,2]
[424383618,1780825869000,-158.563568,0.00019178,2]
[424383609,1780825869000,-158.563568,0.00019178,2]
[424383610,1780825869000,-158.563568,0.00019178,2]
[424383617,1780825869000,-158.563568,0.00019178,2]
[424383616,1780825869000,-158.563568,0.00019178,2]
[424383614,1780825869000,-158.563568,0.00019178,2]
[424383613,1780825869000,-158.563568,0.00019178,2]
[424383611,1780825869000,-158.563568,0.00019178,2]
[424383612,1780825869000,-158.563568,0.00019178,2]
[424383619,1780825869000,-158.563568,0.00019178,2]
[424383621,1780825869000,-158.563568,0.00019178,2]
[424383622,1780825869000,-158.563568,0.00019178,2]
[424383567,1780825869000,-150.0,0.0001902,2]
[424383623,1780825869000,-158.563568,0.00019178,2]
[424383607,1780825869000,-158.563568,0.00019178,2]
[424383592,1780825869000,-151.0,0.00019178,2]
[424383620,1780825869000,-158.563568,0.00019178,2]
[424383589,1780825869000,-151.0,0.00019178,2]
[424383586,1780825869000,-500.0,0.00019098,2]
[424383565,1780825869000,-365.04274191,0.0001901,7]
[424383566,1780825869000,-150.0,0.0001902,2]
[424383563,1780825869000,-151.0,0.00019001,2]
[424383562,1780825869000,-215.83393831,0.00019,7]
[424383559,1780825869000,-151.0,0.00018946,2]
[424383564,1780825869000,-259.0,0.00019008,2]
[424383570,1780825869000,-150.0,0.0001902,2]
[424383574,1780825869000,-620.0,0.0001905,2]
[424383576,1780825869000,-151.0,0.00019054,2]
[424383573,1780825869000,-150.0,0.0001902,2]
[424383579,1780825869000,-151.0,0.00019054,2]
[424383572,1780825869000,-150.0,0.0001902,2]
[424383578,1780825869000,-181.08010149,0.00019054,2]
[424383561,1780825869000,-232.20277663,0.00019,2]
[424383575,1780825869000,-200.0,0.00019054,2]
[424383590,1780825869000,-151.0,0.00019178,2]
[424383585,1780825869000,-151.0,0.00019056,2]
[424383583,1780825869000,-200.0,0.00019054,2]
[424383588,1780825869000,-151.0,0.00019178,2]
[424383593,1780825869000,-151.0,0.00019178,2]
[424383577,1780825869000,-217.15233878,0.00019054,2]
[424383587,1780825869000,-287.75711473,0.00019144,2]
[424383594,1780825869000,-151.0,0.00019178,2]
[424383571,1780825869000,-150.0,0.0001902,2]
[424383582,1780825869000,-217.15233878,0.00019054,2]
[424383580,1780825869000,-217.15233878,0.00019054,2]
[424383581,1780825869000,-500.0,0.00019054,2]
[424383584,1780825869000,-151.0,0.00019054,2]
[424383666,1780825870000,-182.0,0.00019581,2]
[424383663,1780825870000,-350.0,0.00019581,2]
[424383667,1780825870000,-643.87,0.00019588,2]
[424383664,1780825870000,-350.0,0.00019581,2]
[424383653,1780825870000,-419.0,0.00019306,2]
[424383661,1780825870000,-350.0,0.00019581,2]
[424383658,1780825870000,-350.0,0.00019581,2]
[424383659,1780825870000,-350.0,0.00019581,2]
[424383655,1780825870000,-150.0,0.0001938,2]
[424383654,1780825870000,-933.0,0.00019306,2]
[424383665,1780825870000,-350.0,0.00019581,2]
[424383662,1780825870000,-350.0,0.00019581,2]
[424383676,1780825870000,-187.78006524,0.00019602,2]
[424383669,1780825870000,-185.01,0.00019588,2]
[424383679,1780825870000,-500.0,0.00019602,2]
[424383674,1780825870000,-200.0,0.00019602,2]
[424383677,1780825870000,-225.18697532,0.00019602,2]
[424383670,1780825870000,-482.18,0.00019588,2]
[424383668,1780825870000,-487.7,0.00019588,2]
[424383672,1780825870000,-573.03,0.00019588,2]
[424383671,1780825870000,-396.0,0.00019588,2]
[424383673,1780825870000,-377.09,0.00019589,2]
[424383675,1780825870000,-151.0,0.00019602,2]
[424383678,1780825870000,-151.0,0.00019602,2]
[424383652,1780825870000,-150.0,0.00019306,2]
[424383681,1780825870000,-200.0,0.00019602,2]
[424383660,1780825870000,-350.0,0.00019581,2]
[424383651,1780825870000,-1227.0,0.00019306,2]
[424383639,1780825870000,-288.801163,0.00019178,2]
[424383648,1780825870000,-1358.0,0.00019306,2]
[424383682,1780825870000,-151.0,0.00019602,2]
[424383630,1780825870000,-288.801163,0.00019178,2]
[424383624,1780825870000,-158.563568,0.00019178,2]
[424383628,1780825870000,-288.801163,0.00019178,2]
[424383627,1780825870000,-288.801163,0.00019178,2]
[424383625,1780825870000,-158.563568,0.00019178,2]
[424383631,1780825870000,-288.801163,0.00019178,2]
[424383626,1780825870000,-158.56356,0.00019178,2]
[424383629,1780825870000,-288.801163,0.00019178,2]
[424383644,1780825870000,-288.801163,0.00019178,2]
[424383633,1780825870000,-288.801163,0.00019178,2]
[424383643,1780825870000,-288.801163,0.00019178,2]
[424383632,1780825870000,-288.801163,0.00019178,2]
[424383634,1780825870000,-288.801163,0.00019178,2]
[424383641,1780825870000,-288.801163,0.00019178,2]
[424383637,1780825870000,-288.801163,0.00019178,2]
[424383642,1780825870000,-288.801163,0.00019178,2]
[424383640,1780825870000,-288.801163,0.00019178,2]
[424383635,1780825870000,-288.801163,0.00019178,2]
[424383638,1780825870000,-288.801163,0.00019178,2]
[424383636,1780825870000,-288.801163,0.00019178,2]
[424383646,1780825870000,-288.801162,0.00019178,2]
[424383645,1780825870000,-288.801163,0.00019178,2]
[424383649,1780825870000,-1274.0,0.00019306,2]
[424383656,1780825870000,-197.0,0.0001938,2]
[424383647,1780825870000,-3554.0,0.00019306,2]
[424383657,1780825870000,-350.0,0.00019581,2]
[424383650,1780825870000,-382.0,0.00019306,2]
[424383680,1780825870000,-225.18697532,0.00019602,2]
[424383737,1780825870000,-151.0,0.0002015,2]
[424383687,1780825870000,-217.15233878,0.00019875,2]
[424383717,1780825870000,-500.0,0.00020068,7]
[424383718,1780825870000,-300.0,0.000201,10]
[424383727,1780825870000,-999.99,0.00020145,2]
[424383721,1780825870000,-943.8,0.00020145,2]
[424383716,1780825870000,-620.0,0.0002005,2]
[424383719,1780825870000,-2677.43,0.00020145,2]
[424383720,1780825870000,-9800.09,0.00020145,2]
[424383722,1780825870000,-299.99,0.00020145,7]
[424383725,1780825870000,-150.99,0.00020145,2]
[424383724,1780825870000,-9999.99,0.00020145,2]
[424383723,1780825870000,-310.15,0.00020145,2]
[424383726,1780825870000,-2057.46,0.00020145,5]
[424383728,1780825870000,-809.74,0.00020145,2]
[424383732,1780825870000,-233.5188934,0.0002015,2]
[424383733,1780825870000,-151.0,0.0002015,2]
[424383729,1780825870000,-200.0,0.0002015,2]
[424383731,1780825870000,-194.72792766,0.0002015,2]
[424383730,1780825870000,-151.0,0.0002015,2]
[424383736,1780825870000,-200.0,0.0002015,2]
[424383734,1780825870000,-500.0,0.0002015,2]
[424383735,1780825870000,-233.5188934,0.0002015,2]
[424383738,1780825870000,-233.5188934,0.0002015,2]
[424383739,1780825870000,-1060.73,0.00020243,2]
[424383743,1780825870000,-384.72,0.0002041,2]
[424383741,1780825870000,-609.5,0.00020381,2]
[424383740,1780825870000,-340.53865838,0.00020323,10]
[424383742,1780825870000,-396.01,0.0002041,2]
[424383713,1780825870000,-719.0,0.0002,2]
[424383712,1780825870000,-400.0,0.0002,2]
[424383683,1780825870000,-225.18697532,0.00019602,2]
[424383711,1780825870000,-200.0,0.0002,2]
[424383686,1780825870000,-160.0,0.00019875,2]
[424383688,1780825870000,-1385.48,0.000199,2]
[424383684,1780825870000,-160.0,0.00019639,2]
[424383690,1780825870000,-190.334213,0.0002,2]
[424383685,1780825870000,-156.587,0.00019875,2]
[424383689,1780825870000,-1044.0,0.0002,2]
[424383691,1780825870000,-150.0,0.0002,2]
[424383709,1780825870000,-839.0,0.0002,2]
[424383698,1780825870000,-623.0,0.0002,2]
[424383694,1780825870000,-378.0,0.0002,2]
[424383692,1780825870000,-601.05978374,0.0002,2]
[424383702,1780825870000,-584.0,0.0002,2]
[424383695,1780825870000,-198.0,0.0002,2]
[424383693,1780825870000,-598.0,0.0002,2]
[424383696,1780825870000,-544.0,0.0002,2]
[424383699,1780825870000,-221.0,0.0002,2]
[424383710,1780825870000,-1567.0,0.0002,2]
[424383706,1780825870000,-376.0,0.0002,2]
[424383708,1780825870000,-195.042,0.0002,2]
[424383714,1780825870000,-154.07003366,0.0002005,2]
[424383703,1780825870000,-670.0,0.0002,2]
[424383707,1780825870000,-200.0,0.0002,10]
[424383715,1780825870000,-154.07003366,0.0002005,2]
[424383704,1780825870000,-390.0,0.0002,2]
[424383700,1780825870000,-529.0,0.0002,2]
[424383701,1780825870000,-432.0,0.0002,2]
[424383697,1780825870000,-590.0,0.0002,2]
[424383705,1780825870000,-296.0,0.0002,2]
[424383785,1780825871000,-584.0,0.00021,2]
[424383787,1780825871000,-390.0,0.00021,2]
[424383783,1780825871000,-529.0,0.00021,2]
[424383784,1780825871000,-432.0,0.00021,2]
[424383780,1780825871000,-623.0,0.00021,2]
[424383779,1780825871000,-590.0,0.00021,2]
[424383781,1780825871000,-150.0,0.00021,2]
[424383777,1780825871000,-198.0,0.00021,2]
[424383778,1780825871000,-544.0,0.00021,2]
[424383776,1780825871000,-378.0,0.00021,2]
[424383782,1780825871000,-221.0,0.00021,2]
[424383786,1780825871000,-670.0,0.00021,2]
[424383800,1780825871000,-160.0,0.00021244,2]
[424383799,1780825871000,-162.380719,0.00021244,2]
[424383798,1780825871000,-644.0,0.00021233,2]
[424383788,1780825871000,-296.0,0.00021,2]
[424383791,1780825871000,-152.0,0.00021096,5]
[424383796,1780825871000,-644.0,0.00021232,2]
[424383792,1780825871000,-2012.51,0.00021205,2]
[424383794,1780825871000,-185.06,0.00021232,2]
[424383790,1780825871000,-620.0,0.0002105,2]
[424383795,1780825871000,-574.92,0.00021232,2]
[424383797,1780825871000,-575.32,0.00021233,2]
[424383793,1780825871000,-575.32,0.00021232,2]
[424383801,1780825871000,-225.18697532,0.00021244,2]
[424383773,1780825871000,-200.0,0.00020856,2]
[424383789,1780825871000,-376.0,0.00021,2]
[424383768,1780825871000,-200.0,0.00020856,2]
[424383760,1780825871000,-200.0,0.00020698,2]
[424383771,1780825871000,-200.0,0.00020856,2]
[424383802,1780825871000,-599.60298507,0.00021245,2]
[424383744,1780825871000,-152.0,0.00020474,2]
[424383748,1780825871000,-152.0,0.00020474,2]
[424383746,1780825871000,-152.0,0.00020474,2]
[424383747,1780825871000,-152.0,0.00020474,2]
[424383749,1780825871000,-240.0,0.00020474,2]
[424383750,1780825871000,-643.95,0.00020511,2]
[424383745,1780825871000,-152.0,0.00020474,2]
[424383752,1780825871000,-168.32,0.00020639,2]
[424383753,1780825871000,-200.0,0.00020698,2]
[424383763,1780825871000,-194.0,0.00020712,2]
[424383754,1780825871000,-151.0,0.00020698,2]
[424383758,1780825871000,-500.0,0.00020698,2]
[424383755,1780825871000,-201.93286098,0.00020698,2]